Cogmind - Beta 14 @@@ ROGUE MODE // 2024.09.11 @ 18:59:14 Player: jimmyl Result: Destroyed by P-80 Master with Gamma Rifle Performance ------------- Evolutions (7) 3500 Regions Visited (11) 2200 Robots Destroyed (124) 620 Value Destroyed (5841) 5841 Prototype IDs (12) 240 Alien Tech Used (0) 0 Bonus (1608) 1608 TOTAL SCORE: 14009 Bonus ------- High Alert Combat Kills 519 Follower Combat Kills 946 Registered with UFD 300 Friendly Fire -157 Cogmind --------- Core Integrity 0/1300 Matter 220/300 Energy 335/340 System Corruption 13% Temperature Cool (0) Movement Core (400) Ox7 Location -3/Quarantine Parts ------- > --- POWER (2) -------- Particle Reactor > --- PROPULSION (4) --- (None) > --- UTILITY (12) ----- Advanced Targeting Computer Improved Hacking Suite > --- WEAPON (3) ------- Quantum Rifle > --- INVENTORY (5) ---- (None) Peak State ------------ > --- POWER ------------ Particle Reactor Light Particle Reactor > --- PROPULSION ------- Armored Huge Wheel Overtuned Huge Scrapsphere > --- UTILITY ---------- Scrap Suit Advanced Heat Sink Advanced Heat Sink Makeshift Microdissipator Network Quantum Shading Machine Advanced Sensor Array Advanced Targeting Computer Core Analyzer Core Analyzer Advanced Transmission Jammer Advanced EM Disruption Field > --- WEAPON ----------- Overtuned Beamcaster Overtuned Coil Gun Enhanced Force Lance > --- INVENTORY -------- Particle Reactor Overtuned Huge Scrapsphere Scrap Suit [Rating: 120] Favorites ----------- Power Heavy Ion Engine Engine Heavy Ion Engine Power Core Light Fission Core Reactor Particle Reactor Propulsion Armored Treads Treads Armored Treads Leg Myomer Leg Wheel Overtuned Huge Scrapsphere Utility Advanced Targeting Computer Device Cooling System Storage Medium Storage Unit Processor Advanced Targeting Computer Hackware Hacking Suite Protection Hardened Light Armor Plating Weapon Improved Light Cannon Energy Gun Overtuned Beamcaster Energy Cannon Nova Cannon Ballistic Gun Overtuned Coil Gun Ballistic Cannon Improved Light Cannon Slashing Weapon Katana Piercing Weapon Enhanced Force Lance Build | -11 -10 -9 -8 -8 -8 -8 -6 -5 -4 -3 -3 ------- Run | Yrd Mat Mat Mat Sto Rec Scr Fac Fac Fac Res Qua Slots Evolved 14 | . . 2 2 . . . 4 2 2 2 . Power 1 | . . . . . . . 1 . . . . Propulsion 2 | . . 1 . . . . . . . 1 . Utility 10 | . . 1 2 . . . 3 1 2 1 . Weapon 1 | . . . . . . . . 1 . . . Parts Attached 105 | . 3 11 2 4 1 5 8 10 21 21 19 Power 15 | . . 2 . 1 . . 2 2 3 3 2 Engine 7 | . . 2 . 1 . . 1 1 2 . . Core 2 | . . . . . . . 1 . 1 . . Reactor 6 | . . . . . . . . 1 . 3 2 Propulsion 22 | . . 6 . . . 4 1 2 4 2 3 Treads 11 | . . 6 . . . 4 1 . . . . Leg 5 | . . . . . . . . . 2 . 3 Wheel 6 | . . . . . . . . 2 2 2 . Hover . | . . . . . . . . . . . . Flight . | . . . . . . . . . . . . Utility 43 | . 2 1 2 2 1 1 5 5 7 11 6 Device 25 | . 1 . 1 . . 1 2 2 6 10 2 Storage 2 | . 1 . . . . . . . . 1 . Processor 4 | . . . . 1 . . 1 1 . . 1 Hackware 3 | . . . . . . . . 2 . . 1 Protection 9 | . . 1 1 1 1 . 2 . 1 . 2 Artifact . | . . . . . . . . . . . . Weapon 25 | . 1 2 . 1 . . . 1 7 5 8 Energy Gun 5 | . . . . . . . . . 3 . 2 Energy Cannon 6 | . . . . . . . . . . 3 3 Ballistic Gun 9 | . 1 1 . . . . . 1 2 1 3 Ballistic Cannon 3 | . . 1 . 1 . . . . 1 . . Launcher . | . . . . . . . . . . . . Special Weapon . | . . . . . . . . . . . . Impact Weapon . | . . . . . . . . . . . . Slashing Weapon 1 | . . . . . . . . . 1 . . Piercing Weapon 1 | . . . . . . . . . . 1 . Special Melee Weapon . | . . . . . . . . . . . . Unidentified Prototypes 4 | . . . . 1 . . . . . 2 1 Parts Lost 54 | . 1 . . 1 . . 2 4 16 18 12 Power 8 | . 1 . . . . . . 2 2 2 1 Propulsion 8 | . . . . . . . . 2 2 2 2 Utility 22 | . . . . 1 . . 2 . 5 10 4 Weapon 16 | . . . . . . . . . 7 4 5 Highest Loss Streak 13 | . 1 . . 1 . . 1 1 13 6 10 To Critical Strikes 2 | . . . . . . . . . 2 . . Average Slot Usage (%) 81 | . 91 84 86 89 89 89 83 80 60 75 44 Engine 6 | . 9 10 9 9 9 9 5 2 4 . . Reactor 1 | . . . . . . . . 2 . 6 6 Treads 15 | . . 26 27 27 27 26 20 12 . . . Leg 1 | . 28 . . . . . . . 3 . 6 Wheel 1 | . . . . . . . . 1 4 7 . Device 13 | . 9 11 16 10 9 10 15 14 6 28 5 Storage 6 | . 14 11 9 9 9 9 6 5 5 2 . Processor 10 | . . . . 7 9 9 10 16 15 13 7 Hackware 1 | . . . . . . . . 4 5 . 2 Protection 8 | . . 10 16 17 17 14 5 . . . 3 Energy Gun 2 | . 8 . . . . 1 6 3 5 5 1 Ballistic Gun 3 | . 19 6 . . . . 6 8 2 2 7 Ballistic Cannon 4 | . . 7 9 8 9 8 . . . . . Peak Build Rating 120 | . 7 18 22 26 25 43 61 73 87 120 86 Average Rating 47 | . 6 11 21 23 24 27 53 61 58 101 60 On Entrance 30 | 6 6 6 18 22 24 25 43 54 73 80 10 Naked Turns . | . . . . . . . . . . . . Heaviest Build 104 | 12 18 30 37 37 32 32 45 47 64 104 55 Greatest Support 68 | 20 20 60 60 60 60 68 68 68 45 68 50 Greatest Overweight (x) 31 | . . . . . . . . 2 3 31 5 Average Overweight (x) . | . . . . . . . . . 1 1 . Largest Inventory Capacity 20 | . 10 10 10 10 10 10 10 10 10 20 5 Average Capacity 10 | . 9 10 10 10 10 10 10 10 10 11 5 Most Carried 10 | . 6 10 10 10 10 10 10 10 10 10 5 Average Carried 7 | . 5 7 8 9 9 9 9 9 6 5 1 Final Capacity 10 | 8 10 10 10 10 10 10 10 10 10 5 5 Final Carried 10 | 6 6 10 8 10 9 10 9 9 7 5 . Class Distribution -------------------- 32% | Mutant 21% | Commander-Mutant 17% | Scavenger-Scrapper 16% | Scrapper 6% | Scavenger-Mutant 3% | Commander-Scrapper Dominant Class ---------------- Mutant | -10/Materials Mutant | -9/Materials Mutant | -8/Materials Mutant | -8/Storage Mutant | -8/Recycling Commander-Mutant | -8/Scraptown Scrapper | -6/Factory Scrapper | -5/Factory Scavenger-Mutant | -4/Factory Scavenger-Scrapper | -3/Research Scavenger-Mutant | -3/Quarantine Resources | -11 -10 -9 -8 -8 -8 -8 -6 -5 -4 -3 -3 ----------- Run | Yrd Mat Mat Mat Sto Rec Scr Fac Fac Fac Res Qua Matter Collected 2663 | 195 30 308 . 429 85 . 133 407 472 372 232 Remotely 108 | . . . . . . . . . 108 . . Salvage Created 6154 | . 93 428 . 517 92 . 381 1195 1072 1834 542 Parts 322 | . 10 35 . 22 3 . 23 61 44 86 38 Haulers Intercepted 5 | . . . . 4 . . . . . . 1 Recyclers Shooed 3 | . . . . . . . 1 . 1 1 . Parts Field Recycled . | . . . . . . . . . . . . Retrieved Matter . | . . . . . . . . . . . . Parts Self-Destructed . | . . . . . . . . . . . . Prevented . | . . . . . . . . . . . . Kills | -11 -10 -9 -8 -8 -8 -8 -6 -5 -4 -3 -3 ------- Run | Yrd Mat Mat Mat Sto Rec Scr Fac Fac Fac Res Qua Combat Hostiles Destroyed 98 | . 4 16 . 11 2 . 8 14 13 24 6 Melee 1 | . . . . . . . . . 1 . . Guns 59 | . 4 . . . . . 6 14 10 20 5 Cannons 32 | . . 14 . 11 2 . . . 1 3 1 AOE 5 | . . 2 . . . . 2 . 1 . . Classes Destroyed 16 | . 2 4 . 2 2 . . 3 . 3 . Worker 2 | . . . . . . . . . . 2 . Builder 5 | . . . . . . . . 3 1 . 1 Tunneler 1 | . . . . . . . . . . 1 . Hauler 5 | . . . . 4 . . . . . . 1 Recycler 3 | . . . . . 1 . . . 1 1 . Operator 1 | . . . . . . . . 1 . . . Watcher 8 | . . 2 . . . . 1 3 1 1 . Swarmer 18 | . 3 6 . 1 . . . 3 . 5 . Grunt 27 | . 1 5 . . . . 5 7 8 1 . Brawler 2 | . . 1 . . . . . . 1 . . Duelist 3 | . . 1 . 1 . . 1 . . . . Sentry 17 | . . 3 . 7 1 . . 2 . 4 . Specialist 2 | . . . . . . . . . . 2 . Hunter 12 | . . . . 2 . . 1 . 2 4 3 Programmer 17 | . . . . . 1 . 1 2 2 8 3 Scrapoid 1 | . . . . . . . . 1 . . . Best Kill Streak 8 | . 3 7 . 3 1 . 3 6 4 8 3 Combat Bots Only 7 | . 3 7 . 3 1 . 3 4 4 6 2 Max Kills in Single Turn 3 | . 1 3 . 1 1 . 2 2 2 2 1 Gunslinging . | . . . . . . . . . . . . Exploded 2 | . . 2 . . . . 2 . 1 . . Melee 1 | . . . . . . . . . 1 . . Uniques/NPCs Destroyed . | . . . . . . . . . . . . Combat | -11 -10 -9 -8 -8 -8 -8 -6 -5 -4 -3 -3 -------- Run | Yrd Mat Mat Mat Sto Rec Scr Fac Fac Fac Res Qua Hostile Shots Fired 989 | . 38 87 . 82 20 . 33 58 202 266 203 Missed 312 | . 5 31 . 32 7 . 10 17 68 80 62 Damage Taken 11799 | . 326 573 . 817 194 . 474 943 2526 3422 2524 Core 2043 | . 8 107 . 51 . . 64 189 324 526 774 Absorbed by Shields . | . . . . . . . . . . . . Regen/Repaired (Parts) 400 | . . . . 249 . . 4 50 9 88 . Core Remaining (%) 86 | 100 96 73 . . . 90 92 81 71 . . Volleys Fired 399 | . 31 61 . 74 15 . 19 50 48 67 34 Largest 3 | . 2 2 . 1 1 . 2 3 3 2 3 Hottest 226 | . 60 43 . 39 39 . 112 142 200 226 226 Shots Fired 657 | . 62 64 . 74 15 . 38 108 97 134 65 Gun 479 | . 62 6 . . . . 38 108 92 114 59 Cannon 178 | . . 58 . 74 15 . . . 5 20 6 Launcher . | . . . . . . . . . . . . Special . | . . . . . . . . . . . . Kinetic 438 | . 44 64 . 74 15 . 19 75 64 43 40 Thermal 213 | . 18 . . . . . 19 33 27 91 25 Explosive . | . . . . . . . . . . . . Electromagnetic 6 | . . . . . . . . . 6 . . Robot Hit Streak 18 | . 12 17 . 18 10 . 18 14 18 12 13 Robot Miss Streak 6 | . 6 5 . 3 1 . 2 3 2 3 3 Penetration Max 2 | . . . . . . . 1 2 1 1 . Secondary Targets 8 | . 1 . . . . . . 2 4 1 . Max Gunslinging Chain 1 | . 1 . . . . . . 1 1 1 . Shots Hit Robots 435 | . 31 34 . 54 14 . 28 64 68 97 45 Core Hits 225 | . 7 20 . 18 5 . 15 42 39 62 17 Critical Kills 8 | . . . . . . . 3 1 . 3 1 Critical Parts Destroyed 5 | . . . . . . . . 2 2 . 1 Critical Strikes 34 | . . 1 . 4 1 . 4 5 5 12 2 Burn 14 | . . . . . . . 1 1 3 9 . Destroy 14 | . . . . . . . 3 4 2 3 2 Blast 6 | . . 1 . 4 1 . . . . . . Melee Attacks 8 | . . . . . . . . . 4 4 . Impact . | . . . . . . . . . . . . Slashing 4 | . . . . . . . . . 4 . . Piercing 4 | . . . . . . . . . . 4 . Sneak Attacks 1 | . . . . . . . . . . 1 . Combat Hostiles . | . . . . . . . . . . . . Follow-up Attacks . | . . . . . . . . . . . . Damage Inflicted 13364 | . 283 1078 . 1128 353 . 1223 2116 2153 3702 1328 Guns 9040 | . 283 40 . . . . 738 2103 1701 2965 1210 Cannons 2902 | . . 668 . 1128 348 . . . 84 556 118 Explosions 1126 | . . 370 . . . . 481 . 275 . . Melee 265 | . . . . . . . . . 93 172 . Ramming 31 | . . . . . 5 . 4 13 . 9 . Kinetic 7219 | . 161 708 . 1128 348 . 453 1679 1030 1009 703 Thermal 5685 | . 122 370 . . . . 766 424 866 2512 625 Explosive . | . . . . . . . . . . . . Electromagnetic 164 | . . . . . . . . . 164 . . Impact . | . . . . . . . . . . . . Slashing 93 | . . . . . . . . . 93 . . Piercing 172 | . . . . . . . . . . 172 . Highest Corruption 12 | . . . . . . . . 1 2 6 12 Average Corruption 3 | . . . . . . . . 1 1 4 6 Corruption Purged . | . . . . . . . . . . . . Corruption Blocked 12 | . . . . . . . . . . . 12 Effects 50 | . . . . . . . . 7 13 21 9 Message Errors 13 | . . . . . . . . 2 6 4 1 Matter Fused 13 | . . . . . . . . 2 2 7 2 Heat Flow Errors 6 | . . . . . . . . 2 1 1 2 Energy Discharges 2 | . . . . . . . . . . 2 . Parts Rejected 3 | . . . . . . . . . 1 1 1 Data Loss (minor) 3 | . . . . . . . . . 1 2 . Data Loss (major) 3 | . . . . . . . . . . 1 2 Misfires 2 | . . . . . . . . . . 2 . Alerts 2 | . . . . . . . . . . 1 1 Weapon Failures 3 | . . . . . . . . 1 2 . . Overload Shots . | . . . . . . . . . . . . Overflow Damage 340 | . . 95 . . 18 . 146 . 81 . . Projectiles 18 | . . . . . 18 . . . . . . Explosions 322 | . . 95 . . . . 146 . 81 . . Melee . | . . . . . . . . . . . . Knockbacks 12 | . . 2 . 5 4 . . . 1 . . Impact . | . . . . . . . . . . . . Kinetic 10 | . . 2 . 5 2 . . . 1 . . Secondary 2 | . . . . . 2 . . . . . . Self-Inflicted Damage 199 | . . . . . . . 82 . 113 4 . Shots 2 | . . . . . . . 1 . 1 . . Rammed 5 | . . . . . 1 . 1 1 . 2 . Targets Rammed 6 | . . . . . 2 . 1 1 . 2 . Kicked . | . . . . . . . . . . . . Crushed 1 | . . . . . 1 . . . . . . Highest Temperature 342 | . 114 145 . 9 . . 90 313 253 342 186 Average Temperature 62 | . 59 41 . 9 . . 33 67 98 75 98 Received Heat Transfer 1052 | . 93 81 . 171 27 . 126 117 304 133 . Siege Activations . | . . . . . . . . . . . . Robots Corrupted . | . . . . . . . . . . . . Combat Hostiles . | . . . . . . . . . . . . Parts Fried 2 | . . . . . . . . . 2 . . Impact Corruptions . | . . . . . . . . . . . . Robots Melted 1 | . . . . . . . . . . 1 . Combat Hostiles 1 | . . . . . . . . . . 1 . Parts Melted 32 | . . . . . . . 2 3 6 20 1 Heat Transferred 9359 | . 275 250 . . . . 1100 1100 1500 4468 666 Parts Sabotaged . | . . . . . . . . . . . . Parts Stolen . | . . . . . . . . . . . . Parts Stripped . | . . . . . . . . . . . . Power Chain Reactions 1 | . . . . . . . . . 1 . . Alert | -11 -10 -9 -8 -8 -8 -8 -6 -5 -4 -3 -3 ------- Run | Yrd Mat Mat Mat Sto Rec Scr Fac Fac Fac Res Qua Peak Influence 775 | . 151 380 160 432 168 . 278 775 681 579 456 Initial 379 | . . 63 160 67 148 . . 135 379 282 325 Average 275 | . 55 226 160 251 95 . 100 280 546 378 404 Maximum Alert Level 3 | . . 1 . 2 . . 1 3 2 2 2 Low Security (%) 37 | . 100 45 100 36 100 . 95 23 . . . Level 1 42 | . . 54 . 58 . . 4 62 4 66 51 Level 2 19 | . . . . 5 . . . 7 95 33 48 Level 3 . | . . . . . . . . 6 . . . Level 4 . | . . . . . . . . . . . . Level 5 . | . . . . . . . . . . . . High Security . | . . . . . . . . . . . . Max Security . | . . . . . . . . . . . . Squads Dispatched 26 | . 1 2 . 2 . . 4 6 3 7 1 Investigation 5 | . . . . 1 . . . 1 2 1 . Extermination 8 | . . . . . . . 1 2 1 3 1 Reinforcement 11 | . 1 2 . 1 . . 2 3 . 2 . Assault 1 | . . . . . . . . . . 1 . Garrison 1 | . . . . . . . 1 . . . . Intercept . | . . . . . . . . . . . . Searches Triggered . | . . . . . . . . . . . . Construction Impeded 3 | . . . . . . . 1 2 . . . Haulers Reinforced 1 | . . . . . . . . 1 . . . Active Scanning Responses . | . . . . . . . . . . . . Cargo Convoy Interrupts . | . . . . . . . . . . . . Stealth | -11 -10 -9 -8 -8 -8 -8 -6 -5 -4 -3 -3 --------- Run | Yrd Mat Mat Mat Sto Rec Scr Fac Fac Fac Res Qua Distress Signals 8 | . . 2 . 2 . . 1 1 1 1 . Communications Jammed 44 | . . . . . . . . . . 44 . Distress Signals 41 | . . . . . . . . . . 41 . Times Spotted 166 | . 11 24 . 25 2 . 13 27 18 37 9 Peak Tracking Total 6 | . 3 6 . 4 1 . 3 6 4 6 3 Tactical Retreats 10 | . 2 1 . . . . 2 1 . 4 . Traps | -11 -10 -9 -8 -8 -8 -8 -6 -5 -4 -3 -3 ------- Run | Yrd Mat Mat Mat Sto Rec Scr Fac Fac Fac Res Qua Traps Triggered 7 | . . . . 1 . . 1 2 . 3 . Indirectly . | . . . . . . . . . . . . Trap Hack Attempts . | . . . . . . . . . . . . Triggered . | . . . . . . . . . . . . Disarmed . | . . . . . . . . . . . . Reprogrammed . | . . . . . . . . . . . . Reused . | . . . . . . . . . . . . Traps Extracted . | . . . . . . . . . . . . Installed . | . . . . . . . . . . . . Triggered . | . . . . . . . . . . . . Machines | -11 -10 -9 -8 -8 -8 -8 -6 -5 -4 -3 -3 ---------- Run | Yrd Mat Mat Mat Sto Rec Scr Fac Fac Fac Res Qua Machines Disabled 24 | . . 2 . 1 . . 8 10 1 1 1 Max in Single Turn 6 | . . 2 . 1 . . 5 6 1 1 1 Machines Repaired . | . . . . . . . . . . . . Machines Dismantled . | . . . . . . . . . . . . Machines Sabotaged . | . . . . . . . . . . . . Overloaded Fab Kills . | . . . . . . . . . . . . Hacking | -11 -10 -9 -8 -8 -8 -8 -6 -5 -4 -3 -3 --------- Run | Yrd Mat Mat Mat Sto Rec Scr Fac Fac Fac Res Qua Machines Accessed 19 | . 2 2 . 5 . 1 1 2 3 3 . Terminals 11 | . 2 2 . 3 . . . . 2 2 . Fabricators 1 | . . . . . . . . 1 . . . Repair Stations 2 | . . . . 2 . . . . . . . Recycling Units 2 | . . . . . . . . 1 1 . . Scanalyzers . | . . . . . . . . . . . . Garrison Access 2 | . . . . . . . 1 . . 1 . Total Hacks 40 | . 6 3 . 12 . 1 1 3 9 5 . Successful 18 | . 4 1 . 6 . 1 . 2 3 1 . Failed 21 | . 1 2 . 6 . . 1 1 6 4 . Catastrophic 3 | . . 1 . 1 . . . . . 1 . Database Lockouts 1 | . 1 . . . . . . . . . . Manual 24 | . 4 3 . 7 . . . 1 9 . . Terminals 28 | . 6 3 . 7 . . . . 8 4 . Fabricators 2 | . . . . . . . . 2 . . . Repair Stations 5 | . . . . 5 . . . . . . . Recycling Units 2 | . . . . . . . . 1 1 . . Scanalyzers . | . . . . . . . . . . . . Garrison Access 2 | . . . . . . . 1 . . 1 . Terminal Hacks 10 | . 3 1 . 2 . 1 . . 2 1 . Robot Analysis 2 | . 1 . . 1 . . . . . . . Open Door 1 | . . . . 1 . . . . . . . Level Access Points 1 | . . . . . . . . . . 1 . Branch Access Points 2 | . . 1 . . . . . . 1 . . Recycling Unit Index 1 | . . . . . . . . . 1 . . Locate Traps 1 | . 1 . . . . . . . . . . Zone Layout 1 | . 1 . . . . . . . . . . Derelict Proto ID Bank 1 | . . . . . . 1 . . . . . Fabricator Hacks 1 | . . . . . . . . 1 . . . Network Status 1 | . . . . . . . . 1 . . . Repair Station Hacks 4 | . . . . 4 . . . . . . . Scan Component 2 | . . . . 2 . . . . . . . Repair 2 | . . . . 2 . . . . . . . Recycling Unit Hacks . | . . . . . . . . . . . . Scanalyzer . | . . . . . . . . . . . . Garrison Access Hacks . | . . . . . . . . . . . . Unauthorized Hacks 3 | . 1 . . . . . . 1 1 . . Terminals 1 | . 1 . . . . . . . . . . Disrupt 1 | . 1 . . . . . . . . . . Fabricators . | . . . . . . . . . . . . Repair Stations 2 | . . . . . . . . 1 1 . . Recycling Units . | . . . . . . . . . . . . Scrapoids 2 | . . . . . . . . 1 1 . . Scanalyzers . | . . . . . . . . . . . . Garrison Access . | . . . . . . . . . . . . Data Cores Recovered 1 | . . . . . . . . 1 . . . Used . | . . . . . . . . . . . . Hacking Detections 15 | . 2 1 . 5 . . 1 1 2 3 . Full Trace Events 3 | . . . . 1 . . . . 1 1 . Feedback Events . | . . . . . . . . . . . . Feedback Blocked . | . . . . . . . . . . . . Robot Schematics Acquired . | . . . . . . . . . . . . Robots Built . | . . . . . . . . . . . . Authchips . | . . . . . . . . . . . . Time . | . . . . . . . . . . . . Total Robot Build Rating . | . . . . . . . . . . . . Part Schematics Acquired . | . . . . . . . . . . . . Parts Built . | . . . . . . . . . . . . Authchips . | . . . . . . . . . . . . Time . | . . . . . . . . . . . . Total Part Build Rating . | . . . . . . . . . . . . Parts Repaired 2 | . . . . 2 . . . . . . . Time 64 | . . . . 64 . . . . . . . Parts Recycled . | . . . . . . . . . . . . Recycled Matter . | . . . . . . . . . . . . Retrieved Matter . | . . . . . . . . . . . . Retrieved Components . | . . . . . . . . . . . . Parts Scanalyzed . | . . . . . . . . . . . . Part Schematics Acquired . | . . . . . . . . . . . . Parts Damaged . | . . . . . . . . . . . . Bothacking | -11 -10 -9 -8 -8 -8 -8 -6 -5 -4 -3 -3 ------------ Run | Yrd Mat Mat Mat Sto Rec Scr Fac Fac Fac Res Qua Used RIF Installer . | . . . . . . . . . . . . Robots Hacked . | . . . . . . . . . . . . Non-combat . | . . . . . . . . . . . . Combat . | . . . . . . . . . . . . Robot Hacks Applied . | . . . . . . . . . . . . Relay Couplers Released 3 | . . . . . . . . 3 . . . Programmers 3 | . . . . . . . . 3 . . . Fabnet Peak Effective % . | . . . . . . . . . . . . Robots Rewired 11 | . . . . . 11 . . . . . . Allies Hacked . | . . . . . . . . . . . . Hacks Repelled . | . . . . . . . . . . . . Allies | -11 -10 -9 -8 -8 -8 -8 -6 -5 -4 -3 -3 -------- Run | Yrd Mat Mat Mat Sto Rec Scr Fac Fac Fac Res Qua Total Allies 31 | . . . . 10 11 . . 5 5 . . Largest Group 11 | . . . . 10 11 11 10 5 5 . . Highest-Rated Group 241 | . . . . 173 173 173 165 241 241 . . Highest-Rated Ally 50 | . . . . 29 34 34 34 50 50 . . Total Orders 5 | . . . . . . 4 1 . . . . ROAM 1 | . . . . . . . 1 . . . . FOLLOW 1 | . . . . . . 1 . . . . . PICKUP 1 | . . . . . . 1 . . . . . COLLECT 2 | . . . . . . 2 . . . . . Ally Attacks 231 | . . . . 111 3 . 17 49 51 . . Total Damage 4063 | . . . . 1310 55 . 605 949 1144 . . Kills 36 | . . . . 16 1 . 6 8 5 . . Allies Corrupted . | . . . . . . . . . . . . Allies Melted . | . . . . . . . . . . . . Intel | -11 -10 -9 -8 -8 -8 -8 -6 -5 -4 -3 -3 ------- Run | Yrd Mat Mat Mat Sto Rec Scr Fac Fac Fac Res Qua Robot Analysis Total 2 | . 1 . . 1 . . . . . . . Derelict Logs Recovered . | . . . . . . . . . . . . Drone Launches . | . . . . . . . . . . . . Drone Recoveries . | . . . . . . . . . . . . Exploration | -11 -10 -9 -8 -8 -8 -8 -6 -5 -4 -3 -3 ------------- Run | Yrd Mat Mat Mat Sto Rec Scr Fac Fac Fac Res Qua Turns Passed 8581 | . 271 694 45 1428 803 1187 602 1030 642 1517 362 Spaces Moved 4626 | 1 142 328 26 664 395 669 341 598 304 1015 143 Core 86 | . . . . . . . . . 9 63 14 Treads 2908 | . . 306 26 664 395 669 341 507 . . . Legs 416 | 1 142 22 . . . . . . 122 . 129 Wheels 1216 | . . . . . . . . 91 173 952 . Hover . | . . . . . . . . . . . . Flight . | . . . . . . . . . . . . Fastest Speed 50 | 120 120 120 170 170 170 140 140 97 70 50 50 Average Speed 141 | 120 120 159 170 170 170 165 140 134 127 97 150 Slowest Speed 1600 | 120 120 170 170 170 170 170 140 160 200 1600 300 Overloaded Moves . | . . . . . . . . . . . . Propulsion Burnouts . | . . . . . . . . . . . . Robots Hopped . | . . . . . . . . . . . . Cave-ins Triggered . | . . . . . . . . . . . . Exploration Rate (%) 33 | 2 38 35 5 94 93 46 14 21 6 26 20 Regions Visited 11 Branch Regions 4 Pre-discovered Areas . | . . . . . . . . . . . . Known Exits Taken . | . . . . . . . . . . . . Unknown Exits Taken 11 | 1 1 1 1 1 1 1 1 1 1 1 . Scrap Searched . | . . . . . . . . . . . . Spaces Dug 5 | . . . . 1 . . . 3 . 1 . Terrain Destroyed 190 | . . 24 . 2 . . 57 31 48 26 2 Melee 1 | . . . . . . . . . . 1 . Projectile 74 | . . 3 . 2 . . 7 26 9 25 2 AOE 114 | . . 21 . . . . 50 5 38 . . Terrain Rammed . | . . . . . . . . . . . . Walls Destroyed . | . . . . . . . . . . . . Machines Disabled . | . . . . . . . . . . . . Actions | -11 -10 -9 -8 -8 -8 -8 -6 -5 -4 -3 -3 --------- Run | Yrd Mat Mat Mat Sto Rec Scr Fac Fac Fac Res Qua Total 6187 | . 189 438 27 889 510 750 444 776 488 1445 231 Wait 878 | . 11 21 . 142 28 63 74 103 98 311 27 Move 4615 | . 141 327 25 663 394 668 340 597 303 1014 143 Hop . | . . . . . . . . . . . . Pick Up 39 | . 1 8 . 3 . 4 1 4 7 8 3 Fast Attach 58 | . 2 6 . 4 . 3 6 6 8 13 10 Attach 43 | . 1 3 2 . 1 2 2 4 12 7 9 Detach 13 | . . 1 . . . 1 . 2 2 4 3 Swap 4 | . . 2 . . . . . . 1 1 . Drop 54 | . 2 9 . 3 . 9 1 9 5 14 2 Fire 399 | . 31 61 . 74 15 . 19 50 48 67 34 Melee 8 | . . . . . . . . . 4 4 . Ram 2 | . . . . . . . . . . 2 . Kick . | . . . . . . . . . . . . Crush 4 | . . . . . 2 . 1 1 . . . Escape Stasis . | . . . . . . . . . . . . Rewire 70 | . . . . . 70 . . . . . . Trap . | . . . . . . . . . . . . Miscellaneous . | . . . . . . . . . . . . Route ------- -11/Scrapyard -10/Materials -9/Materials (discovered 2 exits: [*Mat] / *Min) -8/Materials -8/Storage (discovered 2 exits: [*Fac] / [*Rec]) -8/Recycling (discovered 2 exits: *Fac / *Scr) -8/Scraptown -6/Factory (discovered 2 exits: *Fac / [*Low]) -5/Factory -4/Factory (discovered 5 exits: *Res / Upp x2 / Ext x2) -3/Research (discovered 4 exits: Res x3 / [*Qua]) -3/Quarantine History --------- Turn | Location | Event 1 | -11/Scrapyard | Discovered new exit (range 0) 1 | -11/Scrapyard | Entered Materials 191 | -10/Materials | Central database locked down 230 | -10/Materials | Discovered new exit (range 15) 272 | -10/Materials | Entered another Materials area 272 | -9/Materials | Evolved 2 slots: Propulsion x1, Utility x1 342 | -9/Materials | Build established: Mutant 513 | -9/Materials | Discovered new exit (range 7) 580 | -9/Materials | Destroyed 7 combat bots 771 | -9/Materials | Discovered new exit (range 16) 903 | -9/Materials | Identified exit to Mines 966 | -9/Materials | Entered another Materials area 966 | -8/Materials | Evolved 2 slots: Utility x2 1004 | -8/Materials | Discovered new exit (range 4) 1011 | -8/Materials | Entered Storage 1109 | -8/Storage | Repaired Hrd. Light Armor Plating 1393 | -8/Storage | Assisted by bots powering up and referring to "LRC-V3" 1516 | -8/Storage | Discovered new exit (range 16) 1696 | -8/Storage | Build established: Commander-Mutant 1892 | -8/Storage | Repaired Imp. Light Cannon 2247 | -8/Storage | Build established: Mutant 2432 | -8/Storage | Used back door to open Recycling access 2432 | -8/Storage | Discovered new exit (range 5) 2439 | -8/Storage | Entered Recycling 2867 | -8/Recycling | Discovered new exit (range 7) 3180 | -8/Recycling | Scanned before Scraplab entrance 3206 | -8/Recycling | Entered Scraplab 3220 | -8/Recycling | Discovered new exit (range 3) 3242 | -8/Recycling | Entered Scraptown 3242 | -8/Scraptown | Accompanied by 11 allies 3257 | -8/Scraptown | Build established: Commander-Mutant 3287 | -8/Scraptown | Heard Great Nut preacher, LISTEN AND RECITE! 3358 | -8/Scraptown | Visited UFD Registry 3358 | -8/Scraptown | Registered with UFD as "Fibernade" 3394 | -8/Scraptown | Visited IN-MT5's Study 3457 | -8/Scraptown | Visited TADAMA 3491 | -8/Scraptown | Visited Fellowship of the Rings 3506 | -8/Scraptown | Visited Symbiants 3603 | -8/Scraptown | Visited Science Guys 3771 | -8/Scraptown | Visited Research Penetration Think Tank 3868 | -8/Scraptown | Visited Scrapoid Pod Storage 3924 | -8/Scraptown | Visited Chapter 10 4009 | -8/Scraptown | Visited Curators Association 4143 | -8/Scraptown | Visited Modified Component R&D 4192 | -8/Scraptown | Visited Scrap Suit Storage 4203 | -8/Scraptown | Found Scrap Suit 4209 | -8/Scraptown | Found Scrap Suit 4400 | -8/Scraptown | Discovered new exit (range 3) 4429 | -8/Scraptown | Entered Factory 4429 | -6/Factory | Accompanied by 10 allies 4429 | -6/Factory | Evolved 4 slots: Power x1, Utility x3 4503 | -6/Factory | Discovered new exit (range 5) 4806 | -6/Factory | Build established: Scrapper 4898 | -6/Factory | Garrison activated, responded to threat 5023 | -6/Factory | Discovered new exit (range 7) 5031 | -6/Factory | Entered another Factory area 5031 | -5/Factory | Evolved 2 slots: Utility x1, Weapon x1 5798 | -5/Factory | Spotted B-75 Beast 5910 | -5/Factory | Scrapoid reinforcements arrived 5955 | -5/Factory | Found Scrap Suit 6040 | -5/Factory | Discovered new exit (range 15) 6061 | -5/Factory | Entered another Factory area 6061 | -4/Factory | Accompanied by 3 allies 6061 | -4/Factory | Evolved 2 slots: Utility x2 6090 | -4/Factory | Identified exit to Upper Caves 6090 | -4/Factory | Identified exit to Extension 6132 | -4/Factory | Lost 3 allies 6195 | -4/Factory | Found Scrap Suit 6321 | -4/Factory | Lost 13 parts (1p2n4u6w) 6584 | -4/Factory | Discovered new exit (range 12) 6632 | -4/Factory | Scrapoid reinforcements arrived 6693 | -4/Factory | Found Scrap Suit 6696 | -4/Factory | Lost 5 allies 6703 | -4/Factory | Entered Research 6703 | -3/Research | Evolved 2 slots: Propulsion x1, Utility x1 6947 | -3/Research | Build established: Scavenger-Scrapper 7513 | -3/Research | Found Prototype Device 7513 | -3/Research | Identified Adv. EM Disruption Field 7851 | -3/Research | Identified exit to Research 7916 | -3/Research | Lost 6 parts (1p1n3u1w) 7994 | -3/Research | Lost 4 parts (3u1w) 8195 | -3/Research | Lost 3 parts (1p1u1w) 8203 | -3/Research | First assault squad dispatched 8213 | -3/Research | Discovered new exit (range 14) 8220 | -3/Research | Entered Quarantine 8222 | -3/Quarantine | Core integrity fell below 50% 8550 | -3/Quarantine | Core integrity fell below 20% 8565 | -3/Quarantine | System corruption reached 10% 8582 | -3/Quarantine | Destroyed by P-80 Master with Gamma Rifle Last Messages --------------- 08549_ Slug penetrates Wall. 08552_ Slug penetrates P-80 Master. 08552_ Slug penetrates Wall. 08552_ Imp. Cloaking Device destroyed. 08555_ Slug penetrates P-80 Master. 08555_ P-80 Master suffers critical hit (Destroy). 08555_ Destroyed Imp. Antigrav System. 08555_ Slug penetrates Wall. 08555_ Slug penetrates P-80 Master. 08555_ Coil Gun destroyed. 08559_ P-80 Master destroyed. 08562_ K-01 Serf collects debris. 08563_ Destroyed Imp. Antigrav System. 08564_ Lgt. Antimatter Reactor destroyed. 08564_ Centrium Medium Armor Plating destroyed. 08565_ P-80 Master destroyed. 08568_ K-01 Serf collects debris. 08575_ System corrupted: IFF burst signal emitted. 08579_ Door malfunctions. 08580_ R-10 Processor collects Imp. Antigrav System. Map ----- +----------------------------------------------------+ | | | | | | | ?????????????????????????????????????????????????? | | ?????????????????????????????????????????????????? | | ?????????????????????????????????????????????????? | | ?????????????????????????????????????????????????? | | ?????????????????????????????????????????????????? | | ?????????????????????????????????????????????????? | | ?????????????????????????????????????????????????? | | ?????????????????????????????????????????????????? | | ?????????????????????????????????????????????????? | | ?????????????????????????????????????????????????? | | ?????????????????????????????????????????????????? | | ?????????????????????##########??????????????????? | | ?????????????????????# #??????????????????? | | ?????????????????????# #??????????????????? | | ?????????????????????# """"" #??????????????????? | | ######???????????????# """"" #????""????????????? | | #########???????# "!" #??? ""????????????? | | """ # #???????# """ #? ??????????????? | | "" # #???????# # ????????????????? | | "" # #???????# /??????????????????? | | + ####???????# %[! #??????????????????? | | = # #?????????#####/############??????????? | | * # % ##??????????# [@[! R ???????? | | "! # #???????????# =p%! ???????? | | # #???????????# k!|""""" """"" ???????? | | ###### ##??????????# """"" """?????????????? | | ?????# ##??????????# """"" """?????????????? | | ###### #???????????# ????????? | | ############# """"" """?????????????? | | +##### * [!u """"" ""??????????????? | | # !]=!!=| """"" """""???????????? | | # ==% ! ?????????? | | "" ]# != ?????????? | | "" # ^ ##############k#############+??????????? | | "" + ^ #????????????#k#???????????????????????? | | " # #????????????# #???????????????????????? | | # #????????????#A#???????????????????????? | | # #????????????# #???????????????????????? | | # #????????????# #???????????????????????? | | #+#### #????????????# #???????????????????????? | | #### ########?????# #???????????????????????? | | #?????? ????????????????????????? | | #?????? ????????????????????????? | | #??????+????????????????????????? | | #???????????????????????????????? | | ## ########## #???????????????????????????????? | | ?# #????????? #???????????????????????????????? | +----------------------------------------------------+ Best States ------------- Heat Dissipation 89 Energy Generation 41 Energy Capacity 540 Matter Stores 300 Matter Capacity 300 Sight Range 16 Robot Scan Range 16 Terrain Scan Density 10 Jamming Range 16 Cloak Strength 3 Additional Mass Support 20 Corruption Block 20 Armor Coverage 300 Phase Shifting 10 Evasion (%) 65 Targeting Accuracy 8 Core Analysis 9 Recoil Reduction 3 Particle Charging 25 Offensive Hacking 14 Item Schematics ----------------- None Robot Schematics ------------------ None Fabricated ------------ Nothing Alien Tech Used ----------------- None Achievements -------------- None Challenges ------------ None Game ------ Seed PhaseTractorWings Manual? 0 Play Time 00:58:38 Cumulative 130.2 hours Start 2024.09.11 @ 18:00:25 End 2024.09.11 @ 18:59:14 Sessions 1 Manual Loads 0 Difficulty Rogue Special Mode None Game No. 211 Rogue 210 Adventurer 1 Explorer 0 Win Type - Total 1 Types 1/0/0/0/0/0/0/0/0 Lore% 66 Gallery% 67 Achievement% 50 Wizard Run 0 Options --------- Layout 1 ASCII 0 Keyboard 0 Movement Mouse Keybinds 0 Fullscreen 2 Font 20/SmallcapsGlow Map View 54x42 Zoom Use 0% Tactical HUD 1 Map Filters NONE Filters NONE Steam 0 RUN: 2452b912-a3a8-4643-812c-fc1f8ed772c4